Cogmind - Beta 16 @@@ ROGUE MODE // 2025.12.31 @ 20:31:45 Player: exo Result: Destroyed by S-10 Pest with Light Assault Rifle Performance ------------- Evolutions (0) 0 Regions Visited (2) 400 Robots Destroyed (15) 75 Value Destroyed (459) 459 Prototype IDs (0) 0 Alien Tech Used (0) 0 Bonus (0) 0 TOTAL SCORE: 934 Bonus ------- None Cogmind --------- Core Integrity 0/250 Matter 300/300 Energy 100/100 System Corruption 1% Temperature Cool (0) Movement Core (1350) Ox26 Location -10/Subcaves Parts ------- > --- POWER (1) -------- (None) > --- PROPULSION (2) --- (None) > --- UTILITY (2) ------ Huge Storage Unit > --- WEAPON (2) ------- (None) > --- INVENTORY (25) --- Ion Engine Ion Engine Light Ion Engine Light Ion Engine Large Storage Unit Propulsion Shielding Propulsion Shielding Light Armor Plating Light Armor Plating Scrap Shield Scrap Shield Fragment (48) Peak State ------------ > --- POWER ------------ Ion Engine > --- PROPULSION ------- Light Treads Light Treads > --- UTILITY ---------- Large Storage Unit Tractor Beam > --- WEAPON ----------- Medium Laser Beam Cannon > --- INVENTORY -------- Ion Engine Light Ion Engine Small Storage Unit [Rating: 7] Favorites ----------- Power Ion Engine Engine Ion Engine Propulsion Light Treads Treads Light Treads Utility Tractor Beam Device Tractor Beam Storage Huge Storage Unit Weapon Beam Cannon Energy Gun Medium Laser Energy Cannon Beam Cannon Launcher Grenade Launcher Build | -11 -10 -10 ------- Run | Yrd Mat Sub Slots Evolved . | . . . Power . | . . . Propulsion . | . . . Utility . | . . . Weapon . | . . . Parts Attached 14 | 6 8 . Power 3 | 2 1 . Engine 3 | 2 1 . Core . | . . . Reactor . | . . . Propulsion 2 | 2 . . Treads 2 | 2 . . Leg . | . . . Wheel . | . . . Hover . | . . . Flight . | . . . Utility 4 | 1 3 . Device 1 | . 1 . Storage 3 | 1 2 . Processor . | . . . Hackware . | . . . Protection . | . . . Artifact . | . . . Weapon 5 | 1 4 . Energy Gun 2 | 1 1 . Energy Cannon 2 | . 2 . Ballistic Gun . | . . . Ballistic Cannon . | . . . Launcher 1 | . 1 . Special Weapon . | . . . Impact Weapon . | . . . Slashing Weapon . | . . . Piercing Weapon . | . . . Special Melee Weapon . | . . . Unidentified Prototypes . | . . . Parts Lost 7 | . 1 6 Power 1 | . . 1 Propulsion 2 | . . 2 Utility 1 | . . 1 Weapon 3 | . 1 2 Highest Loss Streak 5 | . 1 5 To Critical Strikes . | . . . Average Backups 7 | 1 6 9 Power 3 | . 2 4 Propulsion . | . . . Utility 4 | . 2 5 Weapon . | . . . Tool/Special . | . . . Unused Backups 7 | . . 7 Power 2 | . . 2 Propulsion . | . . . Utility 5 | . . 5 Weapon . | . . . Tool/Special . | . . . Average Slot Usage (%) 93 | . 93 92 Engine 13 | . 14 13 Treads 24 | . 28 21 Device 12 | . 10 14 Storage 14 | . 14 14 Energy Gun 2 | . 5 . Energy Cannon 22 | . 17 28 Launcher 1 | . 2 . Peak Build Rating 7 | 5 7 7 Average Rating 6 | 3 6 6 On Entrance 4 | . 5 7 Avg Prop Armor Cover (%) . | . . . Naked Turns . | . . . Heaviest Build 92 | 10 92 92 Greatest Support 40 | 40 40 40 Greatest Overweight (x) 28 | . 2 28 Average Overweight (x) 1 | . . 2 Largest Inventory Capacity 25 | 8 25 25 Average Capacity 21 | 7 18 25 Most Carried 12 | 5 9 12 Average Carried 7 | 1 6 10 Final Capacity 25 | 8 25 25 Final Carried 12 | 1 9 12 Class Distribution -------------------- 100% | Mutant Dominant Class ---------------- Mutant | -10/Materials Mutant | -10/Subcaves Resources | -11 -10 -10 ----------- Run | Yrd Mat Sub Matter Collected 469 | 259 176 34 Remotely 84 | . 50 34 Salvage Created 455 | . 352 103 Parts 31 | . 27 4 Haulers Intercepted . | . . . Recyclers Shooed 1 | . 1 . Parts Field Recycled . | . . . Retrieved Matter . | . . . Parts Self-Destructed 2 | . . 2 Prevented . | . . . Parts Restored . | . . . Kills | -11 -10 -10 ------- Run | Yrd Mat Sub Combat Hostiles Destroyed 10 | . 8 2 Guns 1 | . 1 . Cannons 3 | . 1 2 AOE 6 | . 6 . Classes Destroyed 5 | . 4 1 Builder 2 | . 2 . Operator 1 | . 1 . Watcher 2 | . 2 . Grunt 8 | . 8 . Subdweller 2 | . . 2 Best Kill Streak 5 | . 5 2 Combat Bots Only 4 | . 4 2 Max Kills in Single Turn 2 | . 2 1 Gunslinging . | . . . Exploded 1 | . 1 . Melee . | . . . Uniques/NPCs Destroyed . | . . . Combat | -11 -10 -10 -------- Run | Yrd Mat Sub Hostile Shots Fired 120 | . 29 91 Missed 36 | . 10 26 Hits 84 | . 19 65 Projectile 84 | . 19 65 Damage Taken 1076 | . 373 703 Core 252 | . 23 229 Absorbed by Shields . | . . . Core Remaining (%) 100 | 100 . . Volleys Fired 31 | . 21 10 Largest 2 | . 2 2 Hottest 120 | . 120 120 Shots Fired 59 | . 39 20 Gun 11 | . 11 . Cannon 39 | . 19 20 Launcher 9 | . 9 . Special . | . . . Kinetic . | . . . Thermal 43 | . 23 20 Explosive 9 | . 9 . Electromagnetic 7 | . 7 . Robot Hit Streak 17 | . 9 17 Robot Miss Streak 3 | . 3 1 Penetration Max . | . . . Secondary Targets . | . . . Shots Hit Robots 39 | . 22 17 Core Hits 27 | . 23 4 Critical Kills . | . . . Critical Parts Destroyed . | . . . Critical Strikes . | . . . Melee Attacks . | . . . Impact . | . . . Slashing . | . . . Piercing . | . . . Sneak Attacks . | . . . Combat Hostiles . | . . . Follow-up Attacks . | . . . Damage Inflicted 1167 | . 869 298 Guns 101 | . 101 . Cannons 421 | . 123 298 Explosions 645 | . 645 . Melee . | . . . Ramming . | . . . Kinetic . | . . . Thermal 706 | . 408 298 Explosive 410 | . 410 . Electromagnetic 51 | . 51 . Impact . | . . . Slashing . | . . . Piercing . | . . . Highest Corruption 1 | . 1 1 Average Corruption 1 | . 1 1 Corruption Purged . | . . . Corruption Blocked . | . . . Effects 17 | . 3 14 Message Errors 2 | . . 2 Matter Fused 4 | . 2 2 Heat Flow Errors 3 | . . 3 Energy Discharges 1 | . . 1 Data Loss (minor) 4 | . . 4 Data Loss (major) 2 | . 1 1 Alerts 1 | . . 1 Overload Shots . | . . . Overflow Damage 48 | . 48 . Projectiles . | . . . Explosions 48 | . 48 . Melee . | . . . Knockbacks . | . . . Impact . | . . . Kinetic . | . . . Secondary . | . . . Self-Inflicted Damage 100 | . 100 . Shots 3 | . 3 . Rammed . | . . . Targets Rammed . | . . . Kicked . | . . . Crushed . | . . . Highest Temperature 274 | . 274 102 Average Temperature 74 | . 71 80 Received Heat Transfer 303 | . 129 174 Siege Activations . | . . . Martial Activations . | . . . Shielding Activations . | . . . Robots Disrupted . | . . . Combat Hostiles . | . . . Robots Corrupted . | . . . Combat Hostiles . | . . . Parts Fried . | . . . Impact Corruptions . | . . . Robots Melted . | . . . Combat Hostiles . | . . . Parts Melted . | . . . Heat Transferred 1186 | . 557 629 Parts Sabotaged . | . . . Parts Stolen . | . . . Parts Stripped . | . . . Power Chain Reactions 2 | . 2 . Alert | -11 -10 -10 ------- Run | Yrd Mat Sub Maximum Alert Level . | . . . Low Security (%) 100 | 100 100 . Level 1 . | . . . Level 2 . | . . . Level 3 . | . . . Level 4 . | . . . Level 5 . | . . . High Security . | . . . Max Security . | . . . Peak Influence 174 | . 174 . Initial . | . . . Average 38 | . 40 . Influence Increases 301 | . 301 . Destroy 0b10 Robot/C 160 | . 160 . Destroy 0b10 Robot/NC 25 | . 25 . Destroy Leader 44 | . 44 . Disable Machine 15 | . 15 . Destroy Structure 57 | . 57 . Influence Decreases 301 | . 301 . Time Decay 291 | . 291 . Lost Part 10 | . 10 . Squads Dispatched 1 | . 1 . Investigation . | . . . Extermination . | . . . Reinforcement 1 | . 1 . Assault . | . . . Garrison . | . . . Intercept . | . . . Searches Triggered . | . . . Construction Impeded . | . . . Haulers Reinforced . | . . . Active Scanning Responses . | . . . Cargo Convoy Interrupts . | . . . Stealth | -11 -10 -10 --------- Run | Yrd Mat Sub Distress Signals . | . . . Communications Jammed . | . . . Distress Signals . | . . . Times Spotted 21 | . 13 8 Peak Tracking Total 6 | . 2 6 Tactical Retreats . | . . . Traps | -11 -10 -10 ------- Run | Yrd Mat Sub Traps Triggered 2 | . 2 . Indirectly . | . . . Trap Hack Attempts . | . . . Triggered . | . . . Disarmed . | . . . Reprogrammed . | . . . Reused . | . . . Traps Extracted . | . . . Installed . | . . . Triggered . | . . . Machines | -11 -10 -10 ---------- Run | Yrd Mat Sub Machines Disabled 1 | . 1 . Max in Single Turn 1 | . 1 . Machines Repaired . | . . . Machines Dismantled . | . . . Machines Sabotaged . | . . . Overloaded Fab Kills . | . . . Hacking | -11 -10 -10 --------- Run | Yrd Mat Sub Machines Accessed . | . . . Terminals . | . . . Fabricators . | . . . Repair Stations . | . . . Recycling Units . | . . . Scanalyzers . | . . . Garrison Access . | . . . Total Hacks . | . . . Successful . | . . . Failed . | . . . Catastrophic . | . . . Database Lockouts . | . . . Manual . | . . . Terminals . | . . . Fabricators . | . . . Repair Stations . | . . . Recycling Units . | . . . Scanalyzers . | . . . Garrison Access . | . . . Terminal Hacks . | . . . Fabricator Hacks . | . . . Repair Station Hacks . | . . . Recycling Unit Hacks . | . . . Scanalyzer . | . . . Garrison Access Hacks . | . . . Unauthorized Hacks . | . . . Terminals . | . . . Fabricators . | . . . Repair Stations . | . . . Recycling Units . | . . . Scanalyzers . | . . . Garrison Access . | . . . Data Cores Recovered . | . . . Used . | . . . Hacking Detections . | . . . Full Trace Events . | . . . Feedback Events . | . . . Feedback Blocked . | . . . Robot Schematics Acquired . | . . . Robots Built . | . . . Authchips . | . . . Time . | . . . Total Robot Build Rating . | . . . Part Schematics Acquired . | . . . Parts Built . | . . . Authchips . | . . . Time . | . . . Total Part Build Rating . | . . . Part Studies Acquired . | . . . Parts Repaired . | . . . Time . | . . . Parts Recycled . | . . . Recycled Matter . | . . . Retrieved Matter . | . . . Retrieved Components . | . . . Parts Scanalyzed . | . . . Part Schematics Acquired . | . . . Parts Damaged . | . . . Bothacking | -11 -10 -10 ------------ Run | Yrd Mat Sub Used RIF Installer . | . . . Robots Hacked . | . . . Non-combat . | . . . Combat . | . . . Robot Hacks Applied . | . . . Relay Couplers Released . | . . . Fabnet Peak Effective % . | . . . Robots Rewired . | . . . Allies Hacked . | . . . Hacks Repelled . | . . . Allies | -11 -10 -10 -------- Run | Yrd Mat Sub Total Allies . | . . . Largest Group . | . . . Highest-Rated Group . | . . . Highest-Rated Ally . | . . . Total Orders . | . . . Ally Attacks . | . . . Total Damage . | . . . Kills . | . . . Allies Corrupted . | . . . Allies Melted . | . . . Intel | -11 -10 -10 ------- Run | Yrd Mat Sub Active Infowar (turns) . | . . . Robot Analysis Total . | . . . Derelict Logs Recovered . | . . . Drone Launches . | . . . Drone Recoveries . | . . . Exploration | -11 -10 -10 ------------- Run | Yrd Mat Sub Turns Passed 2148 | 57 1083 1008 Spaces Moved 765 | 39 471 255 Core 17 | 16 . 1 Treads 748 | 23 471 254 Legs . | . . . Wheels . | . . . Hover . | . . . Flight . | . . . Fastest Speed 50 | 50 160 320 Average Speed 257 | 114 200 382 Slowest Speed 1450 | 160 320 1450 Overloaded Moves . | . . . Propulsion Burnouts . | . . . Robots Hopped . | . . . Potential Cave-ins . | . . . Cave-ins Triggered . | . . . Exploration Rate (%) 26 | 3 59 18 Regions Visited 2 Branch Regions 1 Pre-discovered Areas . | . . . Known Exits Taken . | . . . Unknown Exits Taken 2 | 1 1 . Scrap Searched . | . . . Spaces Dug . | . . . Terrain Destroyed 58 | . 58 . Melee . | . . . Projectile . | . . . AOE 58 | . 58 . Terrain Rammed . | . . . Walls Destroyed . | . . . Machines Disabled . | . . . Actions | -11 -10 -10 --------- Run | Yrd Mat Sub Total 887 | 50 570 267 Wait 53 | . 53 . Move 763 | 38 470 255 Hop . | . . . Pick Up 21 | 5 14 2 Fast Attach 1 | 1 . . Attach 7 | 4 3 . Detach . | . . . Swap 8 | 2 6 . Drop 3 | . 3 . Fire 31 | . 21 10 Melee . | . . . Ram . | . . . Kick . | . . . Crush . | . . . Escape Stasis . | . . . Rewire . | . . . Trap . | . . . Miscellaneous . | . . . Route ------- -11/Scrapyard -10/Materials (discovered 3 exits: [*Mat x2] / [*Sub]) -10/Subcaves History --------- Turn | Location | Event 6 | -11/Scrapyard | Discovered new exit (range 15) 58 | -11/Scrapyard | Entered Materials 309 | -10/Materials | Build established: Mutant 352 | -10/Materials | Discovered new exit (range 13) 472 | -10/Materials | Discovered new exit (range 16) 824 | -10/Materials | Discovered new exit (range 6) 1141 | -10/Materials | Entered Subcaves 1142 | -10/Subcaves | Approached by a straggling Scientist 2136 | -10/Subcaves | Core integrity fell below 50% 2148 | -10/Subcaves | Core integrity fell below 20% 2149 | -10/Subcaves | Destroyed by S-10 Pest with Light Assault Rifle Last Messages --------------- Subatomizers dissect the Disposable Heat Sink. Z4KDGDLZO ME5EHO,PG8 X8-H04(c): "I think it's somewhere southeast of here" Subatomizers dissect the Sub. Power Source. X8-H04(c): "I think it's somewhere southeast of here" System corrupted: Component data lost. System corrupted: Substantial component data lost. X8-H04(c): "I think it's somewhere southeast of here" 3QD>ROZOZZ&3U7 GEIUV2S SM X8-H04(c): "I think it's somewhere southeast of here" System corrupted: Component data lost. Lgt. Treads destroyed. Ion Engine destroyed. Tractor Beam destroyed. Beam Cannon destroyed. Map ----- +----------------------------------------------------+ | ?????????????????????????????????????????????????? | | ?????????????????????????????????????????????????? | | ???????????????????????####??????????????????????? | | ??????????????????????## #####??????????????????? | | ????????????????#?##### #??????????????????? | | ???????###?????# ## # #??????????????????? | | ?????### ###??### #??????????????????? | | ???## #### ## # " ##??????????????????? | | ??# ### ### #???????????????????? | | #??# ### #??# #?????"#???????????? | | ??## ## ### ##### #??? "#???????????? | | ???# ## ####?# #?# #?? ##??????????? | | ???### ######????# ##??##?# #??????????? | | ?????## ##????????## ##????# #??????????? | | ####### ###???????## ##### ##?????????? | | ##???????# #?????????? | | #???????## #????????? | | ##????????## ## #????????? | | ## #####?????????## #???????????????? | | #########?????????????# #???????????????? | | ### #????????????????# c ## ####???????????????? | | ## ##???????????????# ##?##??????????????????? | | #??? ########## ##?????????????????????? | | #???t s s # ##????????????????????? | | #??? s #????????????????????? | | #### ##???t s @ #????????????????????? | | #???##???? ###### ##????????????????????? | | ##????????????????# #?????????????????????? | | #???????????????# #?????????????????????? | | ##????????????? ## ?????????????????????? | | #???????????? #?## ?????????????????????? | | ???????????? ???## ????????????????????? | | ???????????? ?????## ????????????????????? | | ????????????? ??????? ^ ???????????????????? | | ????????????? ???????? ???????????????????? | | ?????????????? ????????? ??????????????????? | | ?????????????????????????? #??????????????????? | | ?????????????????????????? ###??????????????????? | | ?????????????????????????? ##????????????????????? | | ?????????????????????????? ??????????????????????? | | ?????????????????????????????????????????????????? | | ?????????????????????????????????????????????????? | | ?????????????????????????????????????????????????? | | ?????????????????????????????????????????????????? | | ?????????????????????????????????????????????????? | | ?????????????????????????????????????????????????? | | ?????????????????????????????????????????????????? | | ?????????????????????????????????????????????????? | | ?????????????????????????????????????????????????? | | ?????????????????????????????????????????????????? | +----------------------------------------------------+ Best States ------------- Heat Dissipation 25 Energy Generation 10 Energy Capacity 250 Matter Stores 300 Matter Capacity 300 Sight Range 16 Terrain Scan Density 10 Evasion (%) 50 Recoil Reduction 2 Item Schematics ----------------- None Robot Schematics ------------------ None Fabricated ------------ Nothing Repaired ---------- Nothing Studied --------- None Alien Tech Used ----------------- None Achievements -------------- None Challenges ------------ None Game ------ Seed SpliceRocketCore Manual? 0 Play Time 00:14:35 Cumulative 7.1 hours Start 2025.12.31 @ 20:18:07 End 2025.12.31 @ 20:31:45 Sessions 1 Manual Loads 0 Difficulty Rogue Special Mode None Game No. 28 Rogue 28 Adventurer 0 Explorer 0 Win Type - Total 0 Types 0/0/0/0/0/0/0/0/0/0 Lore% 7 Gallery% 9 Achievement% 9 Wizard Run 0 Options --------- Layout 1 ASCII 0 Keyboard 0 Movement Mouse Keybinds 0 Fullscreen 0 Font 16/SmallcapsGlow Map View 50x35 Zoom Use 0% Tactical HUD 0 Map Filters NONE Filters NONE Steam 1 RUN: 58d2f98f-fc01-4889-b70f-08cec5567d86